[Event "*** Titled Tuesday 3|2 Blitz"]
[Site "Chess.com"]
[Date "2016.03.01"]
[Round "4"]
[White "chessdude"]
[Black "D-Prawira"]
[Result "1-0"]
[WhiteElo "2363"]
[BlackElo "2210"]
[TimeControl "180+2"]
[EndTime "12:22:36 PST"]
[Termination "chessdude won by resignation"]

1. e4 {[%clk 0:03:01.9]} 1... c5 {[%clk 0:02:58.4]} 2. Nf3 {[%clk 0:03:02.4]}
2... e6 {[%clk 0:02:59.1]} 3. g3 {[%clk 0:03:03.7]} 3... a6 {[%clk 0:02:58.2]}
4. Bg2 {[%clk 0:03:04.9]} 4... Qc7 {[%clk 0:02:59.4]} 5. O-O {[%clk 0:03:06]}
5... b5 {[%clk 0:03:00]} 6. d4 {[%clk 0:03:06.3]} 6... d6 {[%clk 0:03:00.3]} 7.
d5 {[%clk 0:02:57.4]} 7... e5 {[%clk 0:02:58.5]} 8. Nh4 {[%clk 0:02:56.7]} 8...
g6 {[%clk 0:02:49.5]} 9. a4 {[%clk 0:02:56.3]} 9... b4 {[%clk 0:02:45.1]} 10. c4
{[%clk 0:02:54.2]} 10... Bg7 {[%clk 0:02:22.7]} 11. Nd2 {[%clk 0:02:48.9]} 11...
Ne7 {[%clk 0:02:23.4]} 12. Nhf3 {[%clk 0:02:37.3]} 12... Nd7 {[%clk 0:02:19.8]}
13. h4 {[%clk 0:02:38.2]} 13... Nf6 {[%clk 0:02:19.1]} 14. Nh2 {[%clk
0:02:37.6]} 14... h5 {[%clk 0:02:15.9]} 15. Ndf3 {[%clk 0:02:38.1]} 15... Ng4
{[%clk 0:02:13.2]} 16. Ng5 {[%clk 0:02:33]} 16... O-O {[%clk 0:02:00.4]} 17.
Nxg4 {[%clk 0:02:31.1]} 17... Bxg4 {[%clk 0:01:58.9]} 18. f3 {[%clk 0:02:29.8]}
18... Bc8 {[%clk 0:01:57.9]} 19. Kh2 {[%clk 0:02:25]} 19... Ra7 {[%clk
0:01:58.5]} 20. Bh3 {[%clk 0:02:25.7]} 20... f5 {[%clk 0:01:42.9]} 21. b3 {[%clk
0:02:14.8]} 21... Bf6 {[%clk 0:01:19.9]} 22. Ra2 {[%clk 0:02:04.6]} 22... Bxg5
{[%clk 0:01:14.7]} 23. Bxg5 {[%clk 0:02:04.6]} 23... fxe4 {[%clk 0:01:14.8]} 24.
fxe4 {[%clk 0:02:05.5]} 24... Bxh3 {[%clk 0:01:10.3]} 25. Rxf8+ {[%clk
0:02:01.7]} 25... Kxf8 {[%clk 0:01:07.4]} 26. Kxh3 {[%clk 0:02:02.6]} 26... Ng8
{[%clk 0:01:04]} 27. Rf2+ {[%clk 0:02:02.2]} 27... Kg7 {[%clk 0:01:04.8]} 28.
Qf3 {[%clk 0:02:00.2]} 28... Qd7+ {[%clk 0:01:03.1]} 29. Kg2 {[%clk 0:01:59]}
29... Qe8 {[%clk 0:01:03.8]} 30. Bf6+ {[%clk 0:01:57.5]} 30... Kh7 {[%clk
0:01:02.3]} 31. Bg5 {[%clk 0:01:51.7]} 31... Kg7 {[%clk 0:01:01.7]} 32. Bf6+
{[%clk 0:01:41.3]} 32... Kh7 {[%clk 0:00:59.9]} 33. g4 {[%clk 0:01:32.1]} 33...
hxg4 {[%clk 0:00:48.3]} 34. Qxg4 {[%clk 0:01:31.5]} 34... Rf7 {[%clk 0:00:48.7]}
35. Bg5 {[%clk 0:01:24.3]} 35... Rxf2+ {[%clk 0:00:47.5]} 36. Kxf2 {[%clk
0:01:25.1]} 36... Qf7+ {[%clk 0:00:46.9]} 37. Kg2 {[%clk 0:01:25.9]} 37... Nh6
{[%clk 0:00:42.4]} 38. Qe6 {[%clk 0:01:15.5]} 38... Qf8 {[%clk 0:00:33.5]} 39.
Qe7+ {[%clk 0:00:48]} 39... Qxe7 {[%clk 0:00:32.4]} 40. Bxe7 {[%clk 0:00:49.6]}
40... Nf7 {[%clk 0:00:33.6]} 41. Kg3 {[%clk 0:00:50.1]} 41... Kg7 {[%clk
0:00:33.9]} 42. Kg4 {[%clk 0:00:49.6]} 42... Kh6 {[%clk 0:00:35]} 43. Bf8+
{[%clk 0:00:49.6]} 43... Kh7 {[%clk 0:00:35.4]} 44. h5 {[%clk 0:00:50.1]} 44...
gxh5+ {[%clk 0:00:32.5]} 45. Kxh5 {[%clk 0:00:46.7]} 45... Kg8 {[%clk
0:00:33.4]} 46. Be7 {[%clk 0:00:47.8]} 46... Kg7 {[%clk 0:00:34.7]} 47. Kg4
{[%clk 0:00:42.8]} 47... Kg6 {[%clk 0:00:35.3]} 48. a5 {[%clk 0:00:43.5]} 48...
Nh6+ {[%clk 0:00:34.1]} 49. Kh4 {[%clk 0:00:42.8]} 49... Nf7 {[%clk 0:00:33.2]}
50. Bf8 {[%clk 0:00:43.8]} 50... Kf6 {[%clk 0:00:32.9]} 51. Kh5 {[%clk
0:00:42.6]} 51... Ng5 {[%clk 0:00:31.2]} 52. Be7+ {[%clk 0:00:42.2]} 52... Kxe7
{[%clk 0:00:31.1]} 53. Kxg5 {[%clk 0:00:43.6]} 53... Kf7 {[%clk 0:00:19.2]} 54.
Kf5 {[%clk 0:00:42.3]} 54... Ke7 {[%clk 0:00:19.8]} 55. Kg6 {[%clk 0:00:43.3]}
55... Ke8 {[%clk 0:00:16.4]} 56. Kf6 {[%clk 0:00:44.1]} 56... Kd7 {[%clk
0:00:15.5]} 57. Kf7 {[%clk 0:00:45.2]} 57... Kd8 {[%clk 0:00:15.1]} 58. Ke6
{[%clk 0:00:46.4]} 58... Kc7 {[%clk 0:00:15.9]} 59. Ke7 {[%clk 0:00:47.6]} 1-0

[Event "*** Titled Tuesday 3|2 Blitz"]
[Site "Chess.com"]
[Date "2016.03.01"]
[Round "4"]
[White "AdrianaNikolova"]
[Black "chessbia"]
[Result "1-0"]
[WhiteElo "2152"]
[BlackElo "2036"]
[TimeControl "180+2"]
[EndTime "12:22:36 PST"]
[Termination "AdrianaNikolova won by checkmate"]

1. e4 {[%clk 0:03:01.9]} 1... e5 {[%clk 0:02:59.6]} 2. Nf3 {[%clk 0:02:56.9]}
2... Nc6 {[%clk 0:03:00.4]} 3. Bb5 {[%clk 0:02:56.7]} 3... a6 {[%clk 0:03:01.5]}
4. Ba4 {[%clk 0:02:57.4]} 4... Nf6 {[%clk 0:03:02.7]} 5. O-O {[%clk 0:02:58]}
5... Be7 {[%clk 0:03:04]} 6. Re1 {[%clk 0:02:58.1]} 6... b5 {[%clk 0:03:04.9]}
7. Bb3 {[%clk 0:02:58.4]} 7... O-O {[%clk 0:03:06.5]} 8. h3 {[%clk 0:02:56.6]}
8... Bb7 {[%clk 0:03:06.1]} 9. c3 {[%clk 0:02:55.7]} 9... d5 {[%clk 0:03:06.9]}
10. exd5 {[%clk 0:02:54.5]} 10... Nxd5 {[%clk 0:03:08.1]} 11. d4 {[%clk
0:02:54.4]} 11... exd4 {[%clk 0:02:54.9]} 12. Nxd4 {[%clk 0:02:56.3]} 12... Nxd4
{[%clk 0:02:52.4]} 13. cxd4 {[%clk 0:02:56.6]} 13... Bd6 {[%clk 0:02:50.7]} 14.
Nc3 {[%clk 0:02:53.9]} 14... Nf4 {[%clk 0:02:42.1]} 15. Ne4 {[%clk 0:02:39]}
15... Qh4 {[%clk 0:02:17.1]} 16. Qg4 {[%clk 0:02:00.7]} 16... Qxg4 {[%clk
0:02:09.5]} 17. hxg4 {[%clk 0:02:02.6]} 17... Nd3 {[%clk 0:02:11]} 18. Nxd6
{[%clk 0:01:25.6]} 18... cxd6 {[%clk 0:02:03.3]} 19. Re7 {[%clk 0:01:15.9]}
19... Rac8 {[%clk 0:01:37.8]} 20. Bd2 {[%clk 0:00:42.4]} 20... Ba8 {[%clk
0:01:35.4]} 21. Rb1 {[%clk 0:00:30.6]} 21... Rce8 {[%clk 0:01:14.8]} 22. Bxf7+
{[%clk 0:00:29.2]} 22... Rxf7 {[%clk 0:01:13.2]} 23. Rxe8+ {[%clk 0:00:30.5]}
23... Rf8 {[%clk 0:01:14.7]} 24. Rxf8+ {[%clk 0:00:31.8]} 24... Kxf8 {[%clk
0:01:16]} 25. Kf1 {[%clk 0:00:24.1]} 25... Bd5 {[%clk 0:01:04.1]} 26. b3 {[%clk
0:00:18.9]} 26... Be4 {[%clk 0:00:51.5]} 27. f3 {[%clk 0:00:19.8]} 27... Bg6
{[%clk 0:00:51.5]} 28. Rd1 {[%clk 0:00:17.8]} 28... d5 {[%clk 0:00:45.9]} 29.
Ke2 {[%clk 0:00:18.5]} 29... Nb2 {[%clk 0:00:42.8]} 30. Rc1 {[%clk 0:00:19.4]}
30... Nd3 {[%clk 0:00:29]} 31. Rc8+ {[%clk 0:00:19.3]} 31... Ke7 {[%clk
0:00:28.1]} 32. Rc3 {[%clk 0:00:21]} 32... Nb2 {[%clk 0:00:24.1]} 33. Re3+
{[%clk 0:00:22]} 33... Kd6 {[%clk 0:00:24.6]} 34. Bc3 {[%clk 0:00:21.6]} 34...
Nd3 {[%clk 0:00:14.1]} 35. Rxd3 {[%clk 0:00:21.8]} 35... Bxd3+ {[%clk
0:00:14.1]} 36. Kxd3 {[%clk 0:00:23.7]} 36... g6 {[%clk 0:00:15.1]} 37. Bb4+
{[%clk 0:00:24.9]} 37... Kc6 {[%clk 0:00:13.3]} 38. f4 {[%clk 0:00:26.8]} 38...
Kb6 {[%clk 0:00:14.4]} 39. Bf8 {[%clk 0:00:28.1]} 39... a5 {[%clk 0:00:15.1]}
40. a4 {[%clk 0:00:28]} 40... bxa4 {[%clk 0:00:15]} 41. bxa4 {[%clk 0:00:29.9]}
41... Kc6 {[%clk 0:00:16.5]} 42. Be7 {[%clk 0:00:30.8]} 42... Kd7 {[%clk
0:00:17.9]} 43. Bc5 {[%clk 0:00:31.6]} 43... Kc6 {[%clk 0:00:18.8]} 44. f5
{[%clk 0:00:33.1]} 44... gxf5 {[%clk 0:00:19.4]} 45. gxf5 {[%clk 0:00:35]} 45...
h5 {[%clk 0:00:20.2]} 46. f6 {[%clk 0:00:36.2]} 46... Kd7 {[%clk 0:00:21.4]} 47.
f7 {[%clk 0:00:38.1]} 47... Ke6 {[%clk 0:00:22.8]} 48. f8=Q {[%clk 0:00:40]}
48... h4 {[%clk 0:00:24.2]} 49. Qd6+ {[%clk 0:00:41.1]} 49... Kf5 {[%clk
0:00:24.9]} 50. Qxd5+ {[%clk 0:00:43]} 50... Kg4 {[%clk 0:00:25.2]} 51. Qf3+
{[%clk 0:00:43.9]} 51... Kg5 {[%clk 0:00:26]} 52. Be7+ {[%clk 0:00:45.8]} 52...
Kg6 {[%clk 0:00:27.3]} 53. Qf6+ {[%clk 0:00:45.1]} 53... Kh7 {[%clk 0:00:28.1]}
54. Qxh4+ {[%clk 0:00:46.5]} 54... Kg6 {[%clk 0:00:29.1]} 55. g4 {[%clk
0:00:45.9]} 55... Kf7 {[%clk 0:00:30]} 56. Qf6+ {[%clk 0:00:47.1]} 56... Ke8
{[%clk 0:00:30.2]} 57. g5 {[%clk 0:00:47.8]} 57... Kd7 {[%clk 0:00:31]} 58. g6
{[%clk 0:00:48.6]} 58... Kc7 {[%clk 0:00:32.5]} 59. Bc5 {[%clk 0:00:49]} 59...
Kd7 {[%clk 0:00:33.2]} 60. g7 {[%clk 0:00:49.8]} 60... Kc7 {[%clk 0:00:33.6]}
61. g8=Q {[%clk 0:00:50.2]} 61... Kd7 {[%clk 0:00:34]} 62. Qgg7+ {[%clk
0:00:50.8]} 62... Ke8 {[%clk 0:00:34.3]} 63. Qff8# {[%clk 0:00:50.7]} 1-0

[Event "*** Titled Tuesday 3|2 Blitz"]
[Site "Chess.com"]
[Date "2016.03.01"]
[Round "4"]
[White "KNVB"]
[Black "Rickstereo"]
[Result "0-1"]
[WhiteElo "2353"]
[BlackElo "2195"]
[TimeControl "180+2"]
[EndTime "12:22:40 PST"]
[Termination "Rickstereo won by resignation"]

1. d4 {[%clk 0:03:01]} 1... Nf6 {[%clk 0:02:57.1]} 2. c4 {[%clk 0:03:00.4]} 2...
g6 {[%clk 0:02:54.9]} 3. Nc3 {[%clk 0:03:01.7]} 3... d5 {[%clk 0:02:49.5]} 4.
cxd5 {[%clk 0:03:03.6]} 4... Nxd5 {[%clk 0:02:50.9]} 5. Bd2 {[%clk 0:03:03.3]}
5... Nb6 {[%clk 0:02:51.4]} 6. Nf3 {[%clk 0:03:03.5]} 6... Bg7 {[%clk
0:02:51.5]} 7. Qc1 {[%clk 0:03:04.4]} 7... Nc6 {[%clk 0:02:50.3]} 8. Bh6 {[%clk
0:03:03.7]} 8... Bxd4 {[%clk 0:02:20.4]} 9. e3 {[%clk 0:02:52.5]} 9... Bf6
{[%clk 0:02:11]} 10. Qc2 {[%clk 0:02:43]} 10... Bf5 {[%clk 0:02:09.4]} 11. e4
{[%clk 0:02:43.4]} 11... Bd7 {[%clk 0:01:41.4]} 12. Rd1 {[%clk 0:02:35.3]} 12...
e6 {[%clk 0:01:42]} 13. Bb5 {[%clk 0:01:10.3]} 13... Qe7 {[%clk 0:01:41.1]} 14.
O-O {[%clk 0:00:55]} 14... O-O-O {[%clk 0:01:17.8]} 15. Rfe1 {[%clk 0:00:23.4]}
15... Ne5 {[%clk 0:01:06.3]} 16. Nd4 {[%clk 0:00:15.7]} 16... Bxb5 {[%clk
0:00:57.6]} 17. Ncxb5 {[%clk 0:00:12.9]} 17... a6 {[%clk 0:00:54.8]} 18. Nc3
{[%clk 0:00:11.8]} 18... Ng4 {[%clk 0:00:52.6]} 19. Be3 {[%clk 0:00:07.4]} 19...
Nc4 {[%clk 0:00:21.2]} 20. Qe2 {[%clk 0:00:07.9]} 20... Ncxe3 {[%clk 0:00:20.4]}
21. fxe3 {[%clk 0:00:09.8]} 21... h5 {[%clk 0:00:19.5]} 22. h3 {[%clk 0:00:06]}
22... Ne5 {[%clk 0:00:19.2]} 23. Rc1 {[%clk 0:00:07]} 23... Kb8 {[%clk
0:00:19.3]} 24. a4 {[%clk 0:00:05.8]} 24... g5 {[%clk 0:00:19.8]} 25. g3 {[%clk
0:00:03.3]} 25... g4 {[%clk 0:00:20.4]} 26. h4 {[%clk 0:00:04.6]} 26... Rxd4
{[%clk 0:00:20.4]} 27. exd4 {[%clk 0:00:06.5]} 27... Nf3+ {[%clk 0:00:21.5]} 28.
Kg2 {[%clk 0:00:08.1]} 28... Nxd4 {[%clk 0:00:21.8]} 29. Qf2 {[%clk 0:00:07.3]}
29... Nf3 {[%clk 0:00:22.1]} 30. Red1 {[%clk 0:00:09]} 30... Rd8 {[%clk
0:00:22.2]} 31. Rxd8+ {[%clk 0:00:09.3]} 31... Qxd8 {[%clk 0:00:23.3]} 32. Rd1
{[%clk 0:00:11]} 32... Qe7 {[%clk 0:00:24.1]} 33. Ne2 {[%clk 0:00:09.3]} 33...
Bxb2 {[%clk 0:00:24.4]} 34. Nf4 {[%clk 0:00:10.1]} 34... e5 {[%clk 0:00:16.4]}
35. Nd5 {[%clk 0:00:08]} 35... Qa3 {[%clk 0:00:16.2]} 36. Nf6 {[%clk 0:00:06.3]}
36... Bd4 {[%clk 0:00:17.1]} 37. Qe2 {[%clk 0:00:06.8]} 37... Qxa4 {[%clk
0:00:17.1]} 38. Nxh5 {[%clk 0:00:07.3]} 38... b5 {[%clk 0:00:12.5]} 39. Nf6
{[%clk 0:00:08.3]} 39... Ng1 {[%clk 0:00:09.3]} 40. Qxg4 {[%clk 0:00:06.3]}
40... Qc2+ {[%clk 0:00:08.7]} 41. Kh1 {[%clk 0:00:07.8]} 41... Qf2 {[%clk
0:00:08.7]} 42. Nd7+ {[%clk 0:00:05.2]} 42... Ka7 {[%clk 0:00:09.4]} 43. Nxe5
{[%clk 0:00:06.7]} 43... Ne2 {[%clk 0:00:10]} 44. Nc6+ {[%clk 0:00:05.2]} 44...
Kb6 {[%clk 0:00:10.5]} 45. Nxd4 {[%clk 0:00:03.6]} 45... Nxg3+ {[%clk 0:00:12]}
46. Qxg3 {[%clk 0:00:04.6]} 46... Qxg3 {[%clk 0:00:13.2]} 47. Rd2 {[%clk
0:00:04]} 47... Qe1+ {[%clk 0:00:12.8]} 48. Kg2 {[%clk 0:00:04.9]} 48... Qxd2+
{[%clk 0:00:14.3]} 0-1

[Event "*** Titled Tuesday 3|2 Blitz"]
[Site "Chess.com"]
[Date "2016.03.01"]
[Round "4"]
[White "dretch"]
[Black "Alexander_Donchenko"]
[Result "1-0"]
[WhiteElo "2501"]
[BlackElo "2594"]
[TimeControl "180+2"]
[EndTime "12:23:07 PST"]
[Termination "dretch won by resignation"]

1. d4 {[%clk 0:03:01.9]} 1... Nf6 {[%clk 0:03:00.6]} 2. c4 {[%clk 0:03:03.1]}
2... e6 {[%clk 0:03:01.9]} 3. Nc3 {[%clk 0:03:04.5]} 3... Bb4 {[%clk 0:03:02.5]}
4. Qc2 {[%clk 0:03:05.9]} 4... O-O {[%clk 0:03:03.2]} 5. e4 {[%clk 0:03:07.1]}
5... d5 {[%clk 0:03:03.6]} 6. e5 {[%clk 0:03:08.6]} 6... Ne4 {[%clk 0:03:04.8]}
7. Bd3 {[%clk 0:03:10]} 7... c5 {[%clk 0:03:05.7]} 8. Nf3 {[%clk 0:03:11.5]}
8... cxd4 {[%clk 0:02:55.8]} 9. Nxd4 {[%clk 0:03:13.4]} 9... Nd7 {[%clk
0:02:53.7]} 10. Bf4 {[%clk 0:03:14.2]} 10... Ndc5 {[%clk 0:02:52]} 11. O-O
{[%clk 0:03:15]} 11... Nxd3 {[%clk 0:02:51.8]} 12. Qxd3 {[%clk 0:03:15.9]} 12...
Nc5 {[%clk 0:02:40]} 13. Qg3 {[%clk 0:03:12.2]} 13... Bxc3 {[%clk 0:02:32.4]}
14. bxc3 {[%clk 0:03:08.8]} 14... Ne4 {[%clk 0:02:20.4]} 15. Qe3 {[%clk
0:03:09.2]} 15... b6 {[%clk 0:02:16.8]} 16. Rfd1 {[%clk 0:03:07.2]} 16... Ba6
{[%clk 0:02:11.6]} 17. Nc6 {[%clk 0:02:43.8]} 17... Qc7 {[%clk 0:01:57.3]} 18.
cxd5 {[%clk 0:02:44.6]} 18... exd5 {[%clk 0:01:57.9]} 19. Nb4 {[%clk 0:02:45.3]}
19... Bc4 {[%clk 0:01:50.2]} 20. f3 {[%clk 0:02:42]} 20... Nc5 {[%clk 0:01:47]}
21. e6 {[%clk 0:02:40.7]} 21... Qe7 {[%clk 0:01:39.7]} 22. exf7+ {[%clk
0:02:31.8]} 22... Qxf7 {[%clk 0:01:41.6]} 23. Bd6 {[%clk 0:02:15.4]} 23... Rfe8
{[%clk 0:01:41.9]} 24. Qd4 {[%clk 0:02:06.2]} 24... Ne6 {[%clk 0:01:33.7]} 25.
Qg4 {[%clk 0:02:01]} 25... Rad8 {[%clk 0:01:32.2]} 26. Be5 {[%clk 0:02:01.8]}
26... Nc5 {[%clk 0:01:26.3]} 27. Nc6 {[%clk 0:01:50.7]} 27... Rc8 {[%clk
0:01:18.3]} 28. Nd4 {[%clk 0:01:23.5]} 28... h5 {[%clk 0:01:15.2]} 29. Qg5
{[%clk 0:01:19.9]} 29... Qe7 {[%clk 0:01:06.1]} 30. Qxe7 {[%clk 0:01:15.4]}
30... Rxe7 {[%clk 0:01:08]} 31. Bd6 {[%clk 0:01:12.9]} 31... Rd7 {[%clk
0:00:58.5]} 32. Nf5 {[%clk 0:01:11.1]} 32... Re8 {[%clk 0:00:55]} 33. Bg3 {[%clk
0:00:36.8]} 33... Re2 {[%clk 0:00:55.1]} 34. a4 {[%clk 0:00:18.1]} 34... g6
{[%clk 0:00:49.2]} 35. Nd4 {[%clk 0:00:18.4]} 35... Rb2 {[%clk 0:00:49]} 36. Re1
{[%clk 0:00:18.9]} 36... Kf7 {[%clk 0:00:47.9]} 37. a5 {[%clk 0:00:20.2]} 37...
b5 {[%clk 0:00:44.5]} 38. Nc6 {[%clk 0:00:21.3]} 38... Nd3 {[%clk 0:00:37.9]}
39. Re3 {[%clk 0:00:22.5]} 39... Kg7 {[%clk 0:00:32.3]} 40. Rd1 {[%clk
0:00:21.6]} 40... Nc5 {[%clk 0:00:26.3]} 41. Be5+ {[%clk 0:00:17.3]} 41... Kh7
{[%clk 0:00:25.3]} 42. Bd4 {[%clk 0:00:19.1]} 42... Nb3 {[%clk 0:00:22.3]} 43.
Rde1 {[%clk 0:00:17.1]} 43... Nxd4 {[%clk 0:00:22.4]} 44. Nxd4 {[%clk
0:00:18.1]} 44... Kh6 {[%clk 0:00:20.7]} 45. Re8 {[%clk 0:00:17.8]} 45... Ra2
{[%clk 0:00:18.8]} 46. Rh8+ {[%clk 0:00:17.3]} 46... Rh7 {[%clk 0:00:19.9]} 47.
Rxh7+ {[%clk 0:00:17.4]} 47... Kxh7 {[%clk 0:00:21.8]} 48. Re7+ {[%clk
0:00:18.8]} 48... Kh6 {[%clk 0:00:23.4]} 49. Rxa7 {[%clk 0:00:20.7]} 49... Ra1+
{[%clk 0:00:24.7]} 50. Kf2 {[%clk 0:00:21.6]} 50... Ra2+ {[%clk 0:00:26]} 51.
Kg3 {[%clk 0:00:18.4]} 51... Bf1 {[%clk 0:00:26.4]} 52. Kf4 {[%clk 0:00:14.8]}
52... Rxg2 {[%clk 0:00:23.4]} 53. h4 {[%clk 0:00:14.4]} 53... Rh2 {[%clk
0:00:22.9]} 54. Kg3 {[%clk 0:00:15.6]} 54... Rg2+ {[%clk 0:00:21.7]} 55. Kf4
{[%clk 0:00:17]} 55... Rh2 {[%clk 0:00:23]} 56. a6 {[%clk 0:00:17.6]} 56... Ra2
{[%clk 0:00:19.4]} 57. Ne6 {[%clk 0:00:17.9]} 57... Ra4+ {[%clk 0:00:15]} 58.
Kg3 {[%clk 0:00:18.2]} 58... Bd3 {[%clk 0:00:13.5]} 59. Ng5 {[%clk 0:00:18.7]}
1-0

[Event "*** Titled Tuesday 3|2 Blitz"]
[Site "Chess.com"]
[Date "2016.03.01"]
[Round "4"]
[White "MITerryble"]
[Black "JustaTrickstar"]
[Result "1-0"]
[WhiteElo "2627"]
[BlackElo "2466"]
[TimeControl "180+2"]
[EndTime "12:24:45 PST"]
[Termination "MITerryble won by resignation"]

1. d4 {[%clk 0:02:56.2]} 1... f5 {[%clk 0:02:57.5]} 2. c4 {[%clk 0:02:54.8]}
2... Nf6 {[%clk 0:02:57.9]} 3. Nc3 {[%clk 0:02:55.9]} 3... d6 {[%clk 0:02:58.8]}
4. h3 {[%clk 0:02:54.9]} 4... c6 {[%clk 0:02:52.8]} 5. e3 {[%clk 0:02:53.7]}
5... g6 {[%clk 0:02:44]} 6. Be2 {[%clk 0:02:54.1]} 6... Bg7 {[%clk 0:02:42.2]}
7. g4 {[%clk 0:02:55.2]} 7... e5 {[%clk 0:02:40.5]} 8. dxe5 {[%clk 0:02:30]}
8... dxe5 {[%clk 0:02:40.8]} 9. Qxd8+ {[%clk 0:02:31.9]} 9... Kxd8 {[%clk
0:02:42.3]} 10. Nf3 {[%clk 0:02:33]} 10... e4 {[%clk 0:02:29.1]} 11. Nd4 {[%clk
0:02:22.6]} 11... Na6 {[%clk 0:02:09.2]} 12. gxf5 {[%clk 0:02:20.4]} 12... gxf5
{[%clk 0:02:09.2]} 13. Rg1 {[%clk 0:02:20.9]} 13... Ne8 {[%clk 0:02:08]} 14. b3
{[%clk 0:02:13]} 14... c5 {[%clk 0:01:48.6]} 15. Ndb5 {[%clk 0:02:13.8]} 15...
Nb4 {[%clk 0:01:49.4]} 16. Kf1 {[%clk 0:02:11.1]} 16... a6 {[%clk 0:01:50.4]}
17. Rxg7 {[%clk 0:01:55.3]} 17... Nxg7 {[%clk 0:01:52.3]} 18. Nd6 {[%clk
0:01:52.8]} 18... Kc7 {[%clk 0:01:51.1]} 19. Nxc8 {[%clk 0:01:44.6]} 19... Raxc8
{[%clk 0:01:50.5]} 20. Bb2 {[%clk 0:01:43]} 20... Kb8 {[%clk 0:01:21.2]} 21. Na4
{[%clk 0:01:38]} 21... Rhg8 {[%clk 0:01:16.5]} 22. Rd1 {[%clk 0:01:37.1]} 22...
Ne6 {[%clk 0:01:12.4]} 23. Rd7 {[%clk 0:01:30.2]} 23... Nc6 {[%clk 0:01:08.7]}
24. Rxh7 {[%clk 0:01:27]} 24... Rc7 {[%clk 0:01:08.1]} 25. Rh6 {[%clk
0:01:26.1]} 25... Re7 {[%clk 0:00:57.7]} 26. Ba3 {[%clk 0:01:27.3]} 26... Nb4
{[%clk 0:00:57.2]} 27. Nxc5 {[%clk 0:01:26.9]} 27... Nxc5 {[%clk 0:00:50.3]} 28.
Bxb4 {[%clk 0:01:27.5]} 28... Rc7 {[%clk 0:00:51.9]} 29. h4 {[%clk 0:01:18.5]}
29... Rcg7 {[%clk 0:00:41.1]} 30. Ke1 {[%clk 0:01:16.3]} 30... Rg1+ {[%clk
0:00:34.9]} 31. Kd2 {[%clk 0:01:16.9]} 31... Rd8+ {[%clk 0:00:33.5]} 32. Kc2
{[%clk 0:01:15.3]} 32... Nd3 {[%clk 0:00:34]} 33. Bd6+ {[%clk 0:01:16.2]} 33...
Ka8 {[%clk 0:00:23]} 34. Bxd3 {[%clk 0:01:06.9]} 34... exd3+ {[%clk 0:00:24.9]}
35. Kd2 {[%clk 0:01:08.2]} 35... Ra1 {[%clk 0:00:20.8]} 36. f3 {[%clk
0:00:56.2]} 36... Rxa2+ {[%clk 0:00:18.1]} 37. Kxd3 {[%clk 0:00:57.4]} 37... Rb2
{[%clk 0:00:17.5]} 38. Kc3 {[%clk 0:00:56.8]} 38... Re2 {[%clk 0:00:18.6]} 39.
Bc5 {[%clk 0:00:57.6]} 39... Red2 {[%clk 0:00:16.3]} 40. Bd4 {[%clk 0:00:48.1]}
40... Rd1 {[%clk 0:00:17.6]} 41. f4 {[%clk 0:00:33.8]} 41... Rh1 {[%clk
0:00:17.8]} 42. h5 {[%clk 0:00:32.8]} 42... Kb8 {[%clk 0:00:14.2]} 43. Bb6
{[%clk 0:00:30.4]} 43... Re8 {[%clk 0:00:13.7]} 44. Rh7 {[%clk 0:00:29.8]} 44...
Kc8 {[%clk 0:00:14.6]} 45. Rc7+ {[%clk 0:00:23.9]} 45... Kb8 {[%clk 0:00:15.3]}
46. Rh7 {[%clk 0:00:25.8]} 46... Kc8 {[%clk 0:00:16.6]} 47. Bd4 {[%clk
0:00:26.5]} 47... Re6 {[%clk 0:00:17]} 48. Be5 {[%clk 0:00:24.2]} 48... b6
{[%clk 0:00:15.2]} 49. Kd3 {[%clk 0:00:21.4]} 49... Rd1+ {[%clk 0:00:15.5]} 50.
Ke2 {[%clk 0:00:21.5]} 50... Rh1 {[%clk 0:00:14.6]} 51. Kf3 {[%clk 0:00:21.3]}
51... Kd8 {[%clk 0:00:14.1]} 52. e4 {[%clk 0:00:20.2]} 52... fxe4+ {[%clk
0:00:14.1]} 53. Kxe4 {[%clk 0:00:21.5]} 53... Ke8 {[%clk 0:00:14.8]} 54. Kd5
{[%clk 0:00:21.1]} 54... Re7 {[%clk 0:00:15.2]} 55. Rh8+ {[%clk 0:00:22.7]}
55... Kd7 {[%clk 0:00:16]} 56. h6 {[%clk 0:00:21.3]} 56... Rh3 {[%clk
0:00:14.3]} 57. Bg7 {[%clk 0:00:17.4]} 57... Rd3+ {[%clk 0:00:11.6]} 58. Bd4
{[%clk 0:00:18.5]} 58... Rh3 {[%clk 0:00:12.7]} 59. Bxb6 {[%clk 0:00:10.7]}
59... Rxb3 {[%clk 0:00:12.6]} 60. Bd4 {[%clk 0:00:08.8]} 60... Rh3 {[%clk
0:00:13.1]} 61. c5 {[%clk 0:00:09.7]} 61... Rf7 {[%clk 0:00:08.9]} 62. c6+
{[%clk 0:00:10.5]} 62... Kc7 {[%clk 0:00:10.3]} 63. Be5+ {[%clk 0:00:11.7]}
63... Kb6 {[%clk 0:00:12]} 64. Rb8+ {[%clk 0:00:10.7]} 64... Ka7 {[%clk
0:00:12.8]} 65. c7 {[%clk 0:00:09.9]} 65... Rxc7 {[%clk 0:00:11.4]} 66. Bxc7
{[%clk 0:00:11]} 66... Rxh6 {[%clk 0:00:12.8]} 67. Rb1 {[%clk 0:00:11.6]} 67...
Rh8 {[%clk 0:00:12.7]} 68. Be5 {[%clk 0:00:09.2]} 68... Rd8+ {[%clk 0:00:13.2]}
69. Ke4 {[%clk 0:00:10.4]} 69... a5 {[%clk 0:00:14.7]} 70. f5 {[%clk 0:00:11.5]}
70... Ka6 {[%clk 0:00:13.9]} 71. f6 {[%clk 0:00:12.8]} 71... a4 {[%clk
0:00:15.6]} 72. Kf5 {[%clk 0:00:09.5]} 72... Rf8 {[%clk 0:00:14]} 73. Ke6 {[%clk
0:00:10.2]} 73... Rc8 {[%clk 0:00:13.9]} 74. Kd7 {[%clk 0:00:10.5]} 74... Rc2
{[%clk 0:00:13.9]} 75. f7 {[%clk 0:00:10]} 75... Rf2 {[%clk 0:00:15]} 76. Ke7
{[%clk 0:00:11.2]} 76... a3 {[%clk 0:00:16.9]} 77. f8=Q {[%clk 0:00:11.7]} 77...
Rxf8 {[%clk 0:00:18.1]} 78. Kxf8 {[%clk 0:00:12.9]} 78... Ka5 {[%clk 0:00:19.1]}
79. Bd6 {[%clk 0:00:14]} 79... Ka4 {[%clk 0:00:18.6]} 80. Bxa3 {[%clk
0:00:14.3]} 80... Kxa3 {[%clk 0:00:19.3]} 1-0